bitfinex/quotes_SOLUSD_20241102
["timestamp","ask_amount","ask_price","bid_price","bid_amount"]
[1730511428479,70.0,167.59,167.55,8.79234008]
[1730511428665,70.0,167.59,167.56,8.79234008]
[1730511428870,75.9669,167.59,167.54,8.79234008]
[1730511431769,70.0,167.59,167.55,8.79234008]
[1730511432315,75.9669,167.59,167.54,8.79234008]
[1730511433392,75.9669,167.59,167.54,14.76104008]
[1730511433583,21.4218,167.6,167.55,8.79234008]
[1730511433973,15.4552,167.6,167.55,8.79234008]
[1730511434182,15.4552,167.6,167.56,8.79234008]
[1730511435390,15.4552,167.6,167.56,29.68014008]
[1730511435593,24.24754008,167.6,167.56,20.8878]
[1730511437393,24.24754008,167.6,167.55,8.79234008]
[1730511438494,24.24754008,167.6,167.55,14.76034008]
[1730511439577,15.4552,167.6,167.55,14.76034008]
[1730511442498,15.4552,167.6,167.56,8.79234008]
[1730511442903,84.75864008,167.61,167.56,8.79234008]
[1730511444003,84.75864008,167.61,167.56,14.76024008]
[1730511444196,5.9663,167.61,167.57,8.79234008]
[1730511444391,84.75824008,167.62,167.57,8.79234008]
[1730511445778,84.75824008,167.62,167.57,14.75984008]
[1730511447809,70.0,167.62,167.58,8.79234008]
[1730511449389,78.79234008,167.62,167.57,8.79234008]
[1730511450504,8.79234008,167.59,167.55,8.79234008]
[1730511451701,8.79234008,167.6,167.56,5.968]
[1730511453406,84.75904008,167.6,167.55,14.76064008]
[1730511453592,8.79234008,167.59,167.55,5.9683]
[1730511453793,84.75904008,167.6,167.55,14.76064008]
[1730511459308,84.75904008,167.6,167.55,29.68154008]
[1730511461094,75.9667,167.6,167.56,8.79234008]
[1730511467621,84.75904008,167.6,167.55,14.76034008]
[1730511468321,75.9667,167.6,167.55,14.76034008]
[1730511486915,75.9667,167.6,167.56,8.79234008]
[1730511489941,5.9663,167.61,167.56,14.76014008]
[1730511493038,75.9659,167.62,167.57,8.79234008]
[1730511494223,75.9659,167.62,167.57,14.75984008]
[1730511495419,75.9659,167.62,167.58,8.79234008]
[1730511499621,84.75824008,167.62,167.58,8.79234008]
[1730511503221,84.75824008,167.62,167.57,8.79234008]
[1730511504225,84.75824008,167.62,167.57,14.75974008]
[1730511504428,84.75824008,167.62,167.58,8.79234008]
[1730511509339,84.75824008,167.62,167.57,8.79234008]
[1730511509673,8.79234008,167.61,167.56,8.79234008]
[1730511510529,14.75864008,167.61,167.56,14.76014008]
[1730511512427,5.9663,167.61,167.57,8.79234008]
[1730511516629,75.9659,167.62,167.58,8.79234008]
[1730511517924,75.9659,167.62,167.59,8.79234008]
[1730511519760,75.9659,167.62,167.58,8.79234008]
[1730511520654,75.9659,167.62,167.59,8.79234008]
[1730511527542,75.9659,167.62,167.58,8.79234008]
[1730511529748,75.9659,167.62,167.58,14.75954008]
[1730511530448,8.79234008,167.61,167.56,29.68014008]
[1730511530650,78.79234008,167.6,167.56,14.92]
[1730511531862,78.79234008,167.6,167.56,20.888]
[1730511536450,78.79234008,167.6,167.56,8.79234008]
[1730511539764,70.0,167.6,167.56,8.79234008]
[1730511539964,70.0,167.6,167.56,14.76024008]
[1730511540464,70.0,167.6,167.57,8.79234008]
[1730511545864,75.9658,167.62,167.58,8.79234008]
[1730511546071,70.0,167.62,167.59,8.79234008]
[1730511546463,70.0,167.62,167.58,8.79234008]
[1730511548253,70.0,167.62,167.58,14.75954008]
[1730511550359,70.0,167.62,167.59,8.79234008]
[1730511554968,14.75814008,167.63,167.6,8.79234008]
[1730511554969,5.9658,167.63,167.6,8.79234008]
[1730511556681,5.9658,167.63,167.59,8.79234008]
[1730511562993,5.9658,167.63,167.6,8.79234008]
[1730511564606,5.9658,167.63,167.59,8.79234008]
[1730511569493,70.0,167.62,167.58,23.71054008]
[1730511570083,70.0,167.62,167.58,8.79234008]
[1730511571001,70.0,167.62,167.5,8.79234008]
[1730511571002,70.0,167.55,167.5,8.79234008]
[1730511571204,8.79234008,167.54,167.51,3.03039121]
[1730511571381,70.0,167.55,167.46,22.27]
[1730511571382,78.79234008,167.55,167.5,8.79234008]
[1730511571700,75.9686,167.55,167.51,11.82267228]
[1730511571897,75.9686,167.55,167.51,8.79234008]
[1730511572478,70.0,167.55,167.51,8.79234008]
[1730511572683,70.0,167.55,167.53,8.79234008]
[1730511573503,5.9679,167.57,167.53,8.79234008]
[1730511573679,5.9679,167.57,167.54,8.79234008]
[1730511574886,5.9679,167.57,167.53,8.79234008]
[1730511575304,78.79234008,167.58,167.53,8.79234008]
[1730511575485,84.75984008,167.58,167.53,8.79234008]
[1730511577396,75.9675,167.58,167.54,8.79234008]
[1730511577604,84.75984008,167.58,167.53,8.79234008]
[1730511578105,75.9675,167.58,167.54,8.79234008]
[1730511581811,84.75984008,167.58,167.53,8.79234008]
[1730511583599,84.75984008,167.58,167.52,8.79234008]
[1730511583908,70.0,167.56,167.51,23.71674008]
[1730511584113,8.79234008,167.55,167.51,14.9244]
[1730511585314,14.76074008,167.55,167.51,14.9244]
[1730511585496,5.9684,167.55,167.51,23.71674008]
[1730511599527,5.9684,167.55,167.51,29.68644008]
[1730511601906,84.76054008,167.56,167.51,29.68644008]
[1730511614626,70.0,167.56,167.52,8.79234008]
[1730511614818,84.75964008,167.58,167.53,8.79234008]
[1730511616028,84.75964008,167.58,167.53,14.76124008]
[1730511616535,84.75964008,167.58,167.53,29.68394008]
[1730511616536,78.79234008,167.58,167.53,29.68394008]
[1730511618828,70.0,167.58,167.54,8.79234008]
[1730511619844,75.9673,167.58,167.54,8.79234008]
[1730511626235,75.9673,167.58,167.53,23.71504008]
[1730511627345,75.9673,167.58,167.53,29.68404008]
[1730511633837,75.9673,167.58,167.54,8.79234008]
[1730511639356,5.9669,167.59,167.55,8.79234008]
[1730511639559,5.9669,167.59,167.56,8.79234008]
[1730511640358,70.0,167.6,167.56,8.79234008]
[1730511640359,75.9666,167.6,167.56,8.79234008]
[1730511643271,75.9666,167.6,167.57,8.79234008]
[1730511643743,5.9662,167.61,167.57,8.79234008]
[1730511650069,70.0,167.6,167.57,8.79234008]
[1730511650261,75.9667,167.6,167.57,8.79234008]
[1730511652360,75.9667,167.6,167.56,8.79234008]
[1730511654055,75.9667,167.6,167.5,6.7401]
[1730511654056,6.6343,167.58,167.44,65.03066032]
[1730511654263,70.0,167.52,167.47,8.79234008]
[1730511654449,70.0,167.52,167.45,5.9719]
[1730511654450,78.79234008,167.52,167.46,8.79234008]
[1730511654762,78.79234008,167.52,167.47,8.79234008]
[1730511655265,78.79234008,167.52,167.43,6.16648752]
[1730511655266,70.0,167.48,167.45,8.79234008]
[1730511655447,70.0,167.5,167.46,8.79234008]
[1730511655843,75.9703,167.5,167.46,8.79234008]
[1730511660255,75.9703,167.5,167.45,8.79234008]
[1730511661146,84.76264008,167.5,167.45,8.79234008]
[1730511662973,84.76264008,167.5,167.44,14.76454008]
[1730511663754,8.79234008,167.49,167.44,14.76454008]
[1730511663966,14.76284008,167.49,167.44,14.76454008]
[1730511669671,5.9705,167.49,167.45,8.79234008]
[1730511669987,16.3177,167.54,167.48,8.79234008]
[1730511669988,84.76194008,167.52,167.48,8.79234008]
[1730511670355,75.9696,167.52,167.48,8.79234008]
[1730511670755,84.76194008,167.52,167.47,8.79234008]
[1730511671172,84.76194008,167.52,167.47,14.76334008]
[1730511675860,75.9696,167.52,167.48,8.79234008]
[1730511684366,75.9696,167.52,167.48,14.76304008]
[1730511689070,75.9696,167.52,167.47,14.928]
[1730511689071,75.9696,167.52,167.47,23.72034008]
[1730511690187,75.9696,167.52,167.47,29.69154008]
[1730511699495,75.9696,167.52,167.48,8.79234008]
[1730511705485,70.0,167.52,167.49,8.79234008]
[1730511706004,70.0,167.52,167.5,8.79234008]
[1730511707514,92.2864,167.54,167.5,8.79234008]
[1730511707683,5.9687,167.54,167.51,8.79234008]
[1730511708503,5.9683,167.55,167.51,8.79234008]
[1730511708890,91.712,167.58,167.54,8.79234008]
[1730511710597,50.909,167.62,167.56,8.79234008]
[1730511710598,70.0,167.6,167.56,8.79234008]
[1730511710808,75.9666,167.6,167.56,8.79234008]
[1730511712890,70.0,167.6,167.58,8.79234008]
[1730511717313,5.9662,167.61,167.58,8.79234008]
[1730511720822,5.9662,167.61,167.56,5.9679]
[1730511720823,5.9662,167.61,167.57,8.79234008]
[1730511721621,5.9662,167.61,167.58,8.79234008]
[1730511722506,76.5820496,167.64,167.6,8.79234008]
[1730511727414,0.6168496,167.64,167.62,8.79234008]
[1730511735527,0.6168496,167.64,167.63,8.79234008]
[1730511736320,0.6168496,167.64,167.61,14.75824008]
[1730511738332,0.6168496,167.64,167.6,5.9664]
[1730511738519,0.6168496,167.64,167.63,8.79234008]
[1730511740419,0.6168496,167.64,167.63,14.75784008]
[1730511743834,70.0,167.72,167.63,34.75784008]
[1730511744136,30.46214008,167.75,167.63,34.75784008]
[1730511744137,70.0,167.73,167.71,8.79234008]
[1730511745028,5.9616,167.74,167.71,8.79234008]
[1730511745235,78.35136609,167.77,167.73,8.79234008]
[1730511745531,70.0,167.77,167.73,8.79234008]
[1730511746429,5.9608,167.76,167.73,8.79234008]
[1730511751432,70.0,167.75,167.71,8.79234008]
[1730511751629,78.79234008,167.75,167.7,8.79234008]
[1730511752644,14.75394008,167.74,167.69,8.79234008]
[1730511752836,78.79234008,167.73,167.68,8.79234008]
[1730511753349,70.0,167.73,167.69,8.79234008]
[1730511754035,75.9622,167.73,167.69,8.79234008]
[1730511755745,75.9622,167.73,167.68,8.79234008]
[1730511756849,8.79234008,167.72,167.67,8.79234008]
[1730511757230,78.79234008,167.71,167.66,23.70324008]
[1730511758228,70.0,167.71,167.67,8.79234008]
[1730511759141,75.9629,167.71,167.67,8.79234008]
[1730511759551,8.79234008,167.75,167.7,8.79234008]
[1730511759855,75.9608,167.77,167.73,8.79234008]
[1730511760050,75.9608,167.77,167.68,41.40156032]
[1730511760051,75.9608,167.77,167.74,8.79234008]
[1730511761858,75.9608,167.77,167.73,8.79234008]
[1730511764747,75.9608,167.77,167.74,8.79234008]
[1730511765274,75.9608,167.77,167.73,8.79234008]
[1730511768758,70.6168496,167.8,167.76,8.79234008]
[1730511768960,76.5764496,167.8,167.77,8.79234008]
[1730511769552,70.6168496,167.8,167.77,8.79234008]
[1730511769954,76.5762496,167.8,167.76,8.79234008]
[1730511771047,70.6168496,167.8,167.77,8.79234008]
[1730511771244,0.6168496,167.8,167.79,8.79234008]
[1730511773069,0.6168496,167.8,167.79,14.75214008]
[1730511774652,0.6168496,167.8,167.79,8.79234008]
[1730511775042,0.6168496,167.8,167.79,14.75214008]
[1730511776964,0.6168496,167.8,167.79,8.79234008]
[1730511780750,0.6168496,167.8,167.78,8.79234008]
[1730511782067,0.6168496,167.8,167.77,8.79234008]
[1730511782253,9.40918968,167.8,167.75,8.79234008]
[1730511782773,0.6168496,167.8,167.76,8.79234008]
[1730511783245,5.9598,167.79,167.76,8.79234008]
[1730511785081,5.9598,167.79,167.77,8.79234008]
[1730511786572,5.9598,167.79,167.78,8.79234008]
[1730511787772,0.6168496,167.8,167.78,8.79234008]
[1730511787959,0.6168496,167.8,167.79,8.79234008]
[1730511788870,0.6168496,167.8,167.78,8.79234008]
[1730511789371,6.5763496,167.8,167.76,8.79234008]
[1730511790677,6.5763496,167.8,167.75,8.79234008]
[1730511791060,6.5763496,167.8,167.72,14.9049]
[1730511791061,70.0,167.77,167.74,8.79234008]
[1730511792171,75.9606,167.77,167.74,8.79234008]
[1730511793168,70.0,167.75,167.73,8.79234008]
[1730511793374,70.0,167.75,167.72,8.79234008]
[1730511794574,5.9612,167.76,167.73,8.79234008]
[1730511795269,5.9605,167.77,167.75,8.79234008]
[1730511795673,5.9602,167.78,167.75,8.79234008]
[1730511802487,70.0,167.79,167.76,8.79234008]
[1730511802856,75.9598,167.79,167.75,8.79234008]
[1730511803580,75.9598,167.79,167.76,8.79234008]
[1730511811982,70.0,167.77,167.72,23.69744008]
[1730511812787,70.0,167.77,167.74,8.79234008]
[1730511813979,75.9608,167.77,167.74,8.79234008]
[1730511816791,0.6168496,167.8,167.76,43.9617004]
[1730511816988,0.6168496,167.8,167.79,8.79234008]
[1730511820093,0.6168496,167.8,167.79,14.75214008]
[1730511843291,0.6168496,167.8,167.79,8.79234008]
[1730511843880,0.6168496,167.8,167.78,8.79234008]
[1730511844410,0.6168496,167.8,167.79,8.79234008]
[1730511844705,76.5762496,167.8,167.77,8.79234008]
[1730511845704,76.5762496,167.8,167.76,8.79234008]
[1730511847904,85.36858968,167.8,167.75,8.79234008]
[1730511849907,76.5762496,167.8,167.76,8.79234008]
[1730511851898,76.5762496,167.8,167.77,8.79234008]
[1730511852203,76.5762496,167.8,167.78,8.79234008]
[1730511852511,76.5762496,167.8,167.77,8.79234008]
[1730511858112,70.0,167.78,167.76,8.79234008]
[1730511858294,70.0,167.78,167.75,8.79234008]
[1730511858809,70.0,167.78,167.74,8.79234008]
[1730511859003,70.0,167.78,167.75,8.79234008]
[1730511859914,5.9605,167.77,167.75,8.79234008]
[1730511860600,5.9605,167.77,167.72,5.9622]
[1730511860601,70.0,167.76,167.72,8.79234008]
[1730511860790,70.0,167.76,167.74,8.79234008]
[1730511861008,70.0,167.76,167.75,8.79234008]
[1730511863416,70.0,167.76,167.74,8.79234008]
[1730511865295,70.0,167.76,167.75,8.79234008]
[1730511869405,70.0,167.76,167.74,8.79234008]
[1730511870100,75.9609,167.76,167.73,8.79234008]
[1730511870819,70.0,167.76,167.75,8.79234008]
[1730511874016,70.0,167.76,167.74,8.79234008]
[1730511874522,70.0,167.76,167.75,8.79234008]
[1730511878801,70.0,167.76,167.74,8.79234008]
[1730511880833,70.0,167.76,167.73,8.79234008]
[1730511885232,70.0,167.76,167.74,8.79234008]
[1730511885809,70.0,167.76,167.75,8.79234008]
[1730511889436,70.0,167.76,167.74,8.79234008]
[1730511894519,70.0,167.76,167.75,8.79234008]
[1730511895640,70.0,167.76,167.74,8.79234008]
[1730511895842,70.0,167.76,167.73,8.79234008]
[1730511896036,75.9609,167.76,167.73,8.79234008]
[1730511897344,70.0,167.76,167.73,8.79234008]
[1730511897534,70.0,167.76,167.74,8.79234008]
[1730511897734,70.0,167.76,167.73,8.79234008]
[1730511898253,75.961,167.76,167.72,8.79234008]
[1730511899347,75.961,167.76,167.73,8.79234008]
[1730511900539,75.961,167.76,167.72,8.79234008]
[1730511900740,84.75334008,167.76,167.71,8.79234008]
[1730511902951,75.961,167.76,167.72,8.79234008]
[1730511903142,75.961,167.76,167.73,8.79234008]
[1730511904530,70.0,167.76,167.75,8.79234008]
[1730511906349,85.4334,167.79,167.74,8.79234008]
[1730511906526,75.9598,167.79,167.75,8.79234008]
[1730511906728,75.9598,167.79,167.76,8.79234008]
[1730511907748,75.9598,167.79,167.75,8.79234008]
[1730511911450,75.9598,167.79,167.77,8.79234008]
[1730511911828,0.6168496,167.8,167.78,8.79234008]
[1730511916741,0.6168496,167.8,167.77,8.79234008]
[1730511917050,5.9598,167.79,167.76,8.79234008]
[1730511917354,70.0,167.77,167.73,8.79234008]
[1730511917854,70.0,167.75,167.72,8.79234008]
[1730511918030,70.0,167.75,167.71,8.79234008]
[1730511918233,70.0,167.75,167.69,12.10076937]
[1730511918234,70.0,167.75,167.72,8.79234008]
[1730511918743,5.9616,167.74,167.71,8.79234008]
[1730511920442,75.9613,167.75,167.71,8.79234008]
[1730511920828,75.9613,167.75,167.72,8.79234008]
[1730511923042,75.9613,167.75,167.71,8.79234008]
[1730511923550,70.0,167.73,167.69,8.79234008]
[1730511923941,78.79234008,167.73,167.68,8.79234008]
[1730511926058,5.9623,167.72,167.68,8.79234008]
[1730511926658,5.9623,167.72,167.7,8.79234008]
[1730511928436,5.9623,167.72,167.68,8.79234008]
[1730511929258,5.9623,167.72,167.69,8.79234008]
[1730511931140,5.9623,167.72,167.7,8.79234008]
[1730511931358,5.9616,167.74,167.71,8.79234008]
[1730511931557,5.9616,167.74,167.73,8.79234008]
[1730511933964,5.9616,167.74,167.72,8.79234008]
[1730511941578,5.9616,167.74,167.71,8.79234008]
[1730511942069,70.0,167.73,167.7,8.79234008]
[1730511942277,70.0,167.73,167.69,8.79234008]
[1730511943664,5.9623,167.72,167.69,8.79234008]
[1730511944070,70.0,167.71,167.67,8.79234008]
[1730511944377,5.9618,167.74,167.7,8.79234008]
[1730511944580,5.9618,167.74,167.72,8.79234008]
[1730511947269,5.9618,167.74,167.69,5.9633]
[1730511947270,5.9618,167.74,167.71,8.79234008]
[1730511948387,5.9618,167.74,167.72,8.79234008]
[1730511949989,70.0,167.77,167.73,8.79234008]
[1730511950285,5.9605,167.78,167.76,8.79234008]
[1730511952172,6.5763496,167.8,167.77,8.79234008]
[1730511952377,6.5763496,167.8,167.78,8.79234008]
[1730511952771,6.5763496,167.8,167.77,8.79234008]
[1730511954073,70.0,167.79,167.76,8.79234008]
[1730511955090,75.96,167.79,167.76,8.79234008]
[1730511957067,75.96,167.79,167.77,8.79234008]
[1730511959068,75.96,167.79,167.76,8.79234008]
[1730511963096,75.96,167.79,167.77,8.79234008]
[1730511963593,75.96,167.79,167.76,8.79234008]
[1730511967780,75.96,167.79,167.75,8.79234008]
[1730511967993,84.75234008,167.79,167.74,8.79234008]
[1730511968174,70.0,167.77,167.74,8.79234008]
[1730511968694,70.0,167.77,167.73,8.79234008]
[1730511969300,70.0,167.77,167.74,8.79234008]
[1730511969487,75.9607,167.77,167.74,8.79234008]
[1730511971372,75.9607,167.77,167.73,8.79234008]
[1730511974998,70.0,167.75,167.72,8.79234008]
[1730511975498,70.0,167.75,167.71,8.79234008]
[1730511976585,5.9616,167.74,167.71,8.79234008]
[1730511976783,70.0,167.73,167.71,8.79234008]
[1730511977185,70.0,167.73,167.7,8.79234008]
[1730511977794,70.0,167.73,167.69,8.79234008]
[1730511978488,5.9623,167.72,167.69,8.79234008]
[1730511978691,5.4623,167.72,167.69,8.79234008]
[1730511979410,5.4623,167.72,167.7,8.79234008]
[1730511979992,70.0,167.71,167.69,8.79234008]
[1730511980399,70.0,167.71,167.66,21.7805]
[1730511980610,5.4623,167.72,167.7,8.79234008]
[1730511980907,23.69554008,167.75,167.71,8.79234008]
[1730511980908,70.0,167.75,167.71,8.79234008]
[1730511981092,5.9612,167.75,167.74,8.79234008]
[1730511981994,5.4608,167.76,167.74,8.79234008]
[1730511983903,5.4608,167.76,167.73,8.79234008]
[1730511984810,4.9608,167.76,167.73,8.79234008]
[1730511988916,75.9615,167.75,167.72,8.79234008]
[1730511989091,75.9615,167.75,167.71,8.79234008]
[1730511989292,75.9615,167.75,167.7,8.79234008]
[1730511989498,75.9615,167.75,167.71,8.79234008]
[1730511990204,5.9615,167.75,167.71,8.79234008]
[1730511991198,70.0,167.74,167.71,8.79234008]
[1730511991395,75.9617,167.74,167.72,8.79234008]
[1730511992097,75.9617,167.74,167.71,8.79234008]
[1730511993094,5.9608,167.76,167.71,8.79234008]
[1730511995517,5.4608,167.76,167.71,8.79234008]
[1730511997008,75.4608,167.76,167.73,8.79234008]
[1730511998305,74.9608,167.76,167.73,8.79234008]
[1730511999124,74.9608,167.76,167.72,8.79234008]
[1730512000822,70.0,167.76,167.73,8.79234008]
[1730512002520,75.9608,167.76,167.73,8.79234008]
[1730512005423,75.9608,167.76,167.72,8.79234008]
[1730512006520,75.9608,167.76,167.71,8.79234008]
[1730512009744,75.9608,167.76,167.72,8.79234008]
[1730512011433,75.9608,167.76,167.69,21.0253]
[1730512011434,75.9602,167.78,167.74,8.79234008]
[1730512012427,75.9602,167.78,167.75,8.79234008]
[1730512015534,75.9602,167.78,167.73,8.79234008]
[1730512019539,75.9602,167.78,167.74,8.79234008]
[1730512022711,70.0,167.75,167.72,8.79234008]
[1730512022907,70.0,167.75,167.71,8.79234008]
[1730512023609,70.0,167.75,167.69,12.0809]
[1730512023610,70.0,167.75,167.7,8.79234008]
[1730512024721,70.0,167.73,167.7,8.79234008]
[1730512025945,5.9623,167.72,167.7,8.79234008]
[1730512026237,5.9623,167.72,167.68,8.79234008]
[1730512026414,70.0,167.71,167.68,8.79234008]
[1730512027220,70.0,167.71,167.67,8.79234008]
[1730512027439,75.9629,167.71,167.67,8.79234008]
[1730512028215,75.9629,167.71,167.66,23.70334008]
[1730512028627,75.9629,167.71,167.66,8.79234008]
[1730512029224,84.75524008,167.71,167.66,8.79234008]
[1730512031023,70.0,167.69,167.66,8.79234008]
[1730512031243,75.9634,167.69,167.66,8.79234008]
[1730512032718,75.9634,167.69,167.67,8.79234008]
[1730512033125,75.9627,167.71,167.68,8.79234008]
[1730512033421,5.9623,167.72,167.7,8.79234008]
[1730512034941,5.9623,167.72,167.69,8.79234008]
[1730512035820,70.0,167.71,167.68,8.79234008]
[1730512038725,70.0,167.71,167.66,20.8755]
[1730512039041,5.9623,167.72,167.69,8.79234008]
[1730512040436,70.0,167.71,167.69,8.79234008]
[1730512041123,70.0,167.71,167.68,8.79234008]
[1730512042447,70.0,167.71,167.69,8.79234008]
[1730512044545,70.0,167.71,167.7,8.79234008]
[1730512045741,75.962,167.73,167.7,8.79234008]
[1730512045947,75.962,167.73,167.71,8.79234008]
[1730512046933,70.0,167.74,167.72,8.79234008]
[1730512047139,5.961,167.76,167.72,8.79234008]
[1730512050533,70.0,167.74,167.72,8.79234008]
[1730512055650,70.0,167.76,167.73,8.79234008]
[1730512055954,70.0,167.78,167.75,8.79234008]
[1730512056135,70.0,167.78,167.77,8.79234008]
[1730512056849,70.6168496,167.8,167.77,8.79234008]
[1730512057150,70.6168496,167.8,167.71,14.906]
[1730512057151,70.6168496,167.8,167.78,8.79234008]
[1730512058352,70.6168496,167.8,167.77,8.79234008]
[1730512062745,76.5762496,167.8,167.77,8.79234008]
[1730512066365,76.5762496,167.8,167.78,8.79234008]
[1730512066662,70.6168496,167.8,167.77,8.79234008]
[1730512067841,76.5763496,167.8,167.77,8.79234008]
[1730512071466,0.6168496,167.8,167.77,8.79234008]
[1730512071647,0.6168496,167.8,167.78,8.79234008]
[1730512073142,70.6168496,167.8,167.78,8.79234008]
[1730512074860,0.6168496,167.8,167.78,8.79234008]
[1730512075845,70.6168496,167.8,167.78,8.79234008]
[1730512077069,0.6168496,167.8,167.78,8.79234008]
[1730512079668,70.6168496,167.8,167.78,8.79234008]
[1730512082863,70.6168496,167.8,167.77,8.79234008]
[1730512085566,70.6168496,167.8,167.78,8.79234008]
[1730512085765,70.6168496,167.8,167.74,20.8651]
[1730512085766,0.6168496,167.8,167.79,8.79234008]
[1730512087748,0.6168496,167.8,167.79,14.75214008]
[1730512105768,0.6168496,167.8,167.79,34.75214008]
[1730512126199,0.6168496,167.8,167.79,34.85214008]
[1730512128201,0.6168496,167.8,167.79,34.75214008]
[1730512128402,0.6168496,167.8,167.79,34.85214008]
[1730512128584,0.6168496,167.8,167.79,34.75214008]
[1730512128783,0.6168496,167.8,167.79,34.85214008]
[1730512129188,0.6168496,167.8,167.79,34.75214008]
[1730512129585,0.6168496,167.8,167.79,34.85214008]
[1730512129808,0.6168496,167.8,167.79,34.75214008]
[1730512130316,0.6168496,167.8,167.79,34.85214008]
[1730512130684,0.6168496,167.8,167.79,34.75214008]
[1730512130908,0.6168496,167.8,167.79,34.85214008]
[1730512132199,0.6168496,167.8,167.79,34.75214008]
[1730512132399,0.6168496,167.8,167.79,34.85214008]
[1730512133409,0.6168496,167.8,167.79,34.75214008]
[1730512133799,0.6168496,167.8,167.79,34.85214008]
[1730512136788,0.6168496,167.8,167.79,34.75214008]
[1730512137306,0.6168496,167.8,167.79,34.85214008]
[1730512139710,0.6168496,167.8,167.79,34.75214008]
[1730512139884,0.6168496,167.8,167.79,34.85214008]
[1730512141979,5.9562,167.89,167.8,20.1]
[1730512142186,5.9562,167.89,167.86,8.79234008]
[1730512145207,91.9306,167.9,167.86,8.79234008]
[1730512145420,21.9306,167.9,167.87,8.79234008]
[1730512146294,91.9306,167.9,167.87,8.79234008]
[1730512148111,97.8865,167.9,167.87,8.79234008]
[1730512148405,91.9306,167.9,167.86,14.74944008]
[1730512148613,97.8865,167.9,167.86,14.74944008]
[1730512149782,91.9306,167.9,167.86,8.79234008]
[1730512149987,97.8867,167.9,167.86,8.79234008]
[1730512150394,106.67904008,167.9,167.85,23.68594008]
[1730512151102,106.67904008,167.9,167.83,8.79234008]
[1730512151103,70.0,167.88,167.83,8.79234008]
[1730512151408,70.0,167.88,167.84,8.79234008]
[1730512152084,75.9569,167.88,167.84,8.79234008]
[1730512152609,84.74924008,167.88,167.83,8.79234008]
[1730512154308,75.9569,167.88,167.84,8.79234008]
[1730512161201,84.74924008,167.88,167.83,8.79234008]
[1730512162399,70.0,167.86,167.82,8.79234008]
[1730512162613,78.79234008,167.86,167.81,8.79234008]
[1730512163612,5.9577,167.85,167.82,8.79234008]
[1730512170123,5.9577,167.85,167.81,8.79234008]
[1730512173221,70.0,167.84,167.81,8.79234008]
[1730512173522,70.0,167.84,167.8,14.8986]
[1730512173523,70.0,167.84,167.8,23.69094008]
[1730512174325,70.0,167.84,167.81,8.79234008]
[1730512175308,75.9582,167.84,167.81,8.79234008]
[1730512177125,75.9582,167.84,167.8,8.79234008]
[1730512184537,75.9582,167.84,167.79,8.79234008]
[1730512190957,16.6377,167.85,167.81,8.79234008]
[1730512191120,22.5955,167.85,167.81,8.79234008]
[1730512192445,22.5955,167.85,167.8,8.79234008]
[1730512192634,70.0,167.84,167.8,8.79234008]
[1730512193522,75.9583,167.84,167.8,8.79234008]
[1730512195452,8.79234008,167.83,167.77,14.75284008]
[1730512196131,8.79234008,167.82,167.77,14.75284008]
[1730512196645,14.75134008,167.82,167.77,14.75284008]
[1730512197837,84.75134008,167.82,167.76,8.79234008]
[1730512198147,78.79234008,167.79,167.74,8.79234008]
[1730512198737,5.9601,167.78,167.74,8.79234008]
[1730512199947,14.75244008,167.78,167.74,8.79234008]
[1730512200655,5.9601,167.78,167.74,8.79234008]
[1730512203453,14.75244008,167.78,167.74,8.79234008]
[1730512203653,14.75244008,167.78,167.73,8.79234008]
[1730512203834,14.75244008,167.78,167.71,20.8686]
[1730512203835,78.79234008,167.77,167.72,8.79234008]
[1730512204036,8.79234008,167.76,167.72,8.79234008]
[1730512204554,78.79234008,167.74,167.69,8.79234008]
[1730512205554,84.75424008,167.74,167.69,8.79234008]
[1730512209656,8.79234008,167.73,167.69,8.79234008]
[1730512210369,14.75424008,167.73,167.68,8.79234008]
[1730512210858,14.75424008,167.73,167.69,8.79234008]
[1730512215455,78.79234008,167.72,167.68,8.79234008]
[1730512216656,14.75494008,167.71,167.67,23.70174008]
[1730512217068,5.9626,167.71,167.68,8.79234008]
[1730512224946,50.07226032,167.76,167.7,8.79234008]
[1730512224947,75.9611,167.76,167.7,8.79234008]
[1730512225148,75.9611,167.76,167.68,35.16936032]
[1730512225149,75.9611,167.76,167.72,8.79234008]
[1730512228456,75.9611,167.76,167.73,8.79234008]